lending/lending_fUSD_20250430
["ID","MTS","AMOUNT","RATE_DAILY","PERIOD"]
[359433010,1746013837770,-953.82884201,0.0002,2]
[359433011,1746013837802,-1213.83625449,0.0002,2]
[359433012,1746013837814,-2547.105,0.0002,2]
[359433013,1746013837908,-590.08296798,0.0002,2]
[359433014,1746013837919,-20000.0,0.0002,2]
[359433084,1746013839894,-867.89771197,0.0002,2]
[359433085,1746013839906,-874.64160224,0.0002,2]
[359433086,1746013839917,-3782.43882103,0.0002,2]
[359433087,1746013839929,-1000.0,0.0002,2]
[359433088,1746013839948,-9854.64352264,0.0002,2]
[359433089,1746013839961,-6223.95118919,0.0002,2]
[359433090,1746013839974,-500.0,0.0002,2]
[359433091,1746013839985,-577.46205938,0.0002,2]
[359433092,1746013840106,-494.99999995,0.0002,2]
[359433093,1746013840118,-3502.92483313,0.0002,2]
[359433094,1746013840161,-741.29069357,0.0002,2]
[359433095,1746013840173,-654.839996,0.0002,2]
[359433096,1746013840185,-8924.76566178,0.0002,2]
[359433097,1746013840268,-6492.98264759,0.0002,2]
[359433098,1746013840373,-636.69630876,0.0002,2]
[359433099,1746013840429,-40389.97660468,0.0002,2]
[359433100,1746013840440,-905.80739192,0.0002,2]
[359433101,1746013840451,-1028.93609989,0.0002,2]
[359433102,1746013840462,-682.60523184,0.0002,2]
[359433103,1746013840473,-1034.355,0.0002,2]
[359433117,1746013843097,-14260.13280871,0.0002,2]
[359433118,1746013843109,-450.0,0.0002,2]
[359433119,1746013843120,-2513.09890421,0.0002,2]
[359433120,1746013843131,-1499.756,0.0002,2]
[359433121,1746013843142,-485.305,0.0002,2]
[359433122,1746013843152,-1849.17996934,0.0002,2]
[359433123,1746013843162,-20050.5281298,0.0002,2]
[359433124,1746013843173,-9564.3906,0.0002,2]
[359433125,1746013843185,-631.44,0.0002,2]
[359433126,1746013843197,-1356.4999996,0.0002,2]
[359433127,1746013843209,-471.928098,0.0002,2]
[359433129,1746013843219,-2066.8021701,0.0002,2]
[359433131,1746013843235,-10937.10514328,0.0002,2]
[359433132,1746013843245,-9652.48560775,0.0002,2]
[359433133,1746013843257,-1669.93705332,0.0002,2]
[359433135,1746013843273,-506.62630079,0.0002,2]
[359433137,1746013843284,-352.72799642,0.0002,2]
[359433139,1746013843295,-431.899998,0.0002,2]
[359433141,1746013843307,-263.11336318,0.0002,2]
[359433143,1746013843318,-2508.75047076,0.0002,2]
[359433145,1746013843330,-2903.04000028,0.0002,2]
[359433381,1746013845677,-1504.33671847,0.0002,2]
[359433387,1746013845730,-5171.00826254,0.0002,2]
[359433389,1746013845743,-1526.77504163,0.0002,2]
[359433394,1746013845782,-1417.56443875,0.0002,2]
[359433396,1746013845793,-10211.94307124,0.0002,2]
[359433407,1746013845889,-320.2207373,0.0002,2]
[359433409,1746013845901,-536.91118955,0.0002,2]
[359433414,1746013845943,-120132.95978371,0.0002,2]
[359433416,1746013845954,-467.96961399,0.0002,2]
[359433418,1746013845966,-321.36862061,0.0002,2]
[359433427,1746013846049,-2508.77207442,0.0002,2]
[359433429,1746013846060,-47664.54889142,0.0002,2]
[359433577,1746013870884,150.0,0.00017799,2]
[359433578,1746013870919,150.0,0.000179,2]
[359433579,1746013870945,150.0,0.00017996,2]
[359433580,1746013870982,150.0,0.00017911,2]
[359433581,1746013871096,150.0,0.00017963,2]
[359433582,1746013871123,150.0,0.00017875,2]
[359433583,1746013871156,150.0,0.00017965,2]
[359433584,1746013871187,150.0,0.00017843,2]
[359433585,1746013871219,150.0,0.00017913,2]
[359433586,1746013871248,150.0,0.00017988,2]
[359433587,1746013871275,150.0,0.00017735,2]
[359433588,1746013871307,150.0,0.0001782,2]
[359433589,1746013871335,150.0,0.0001777,2]
[359433590,1746013871393,150.0,0.00017864,2]
[359433591,1746013871446,150.0,0.00017809,2]
[359433592,1746013871550,150.0,0.00017773,2]
[359433593,1746013871617,150.0,0.00017837,2]
[359433594,1746013871669,150.0,0.00017839,2]
[359433595,1746013871702,150.0,0.00017949,2]
[359433596,1746013871736,150.0,0.00017738,2]
[359433598,1746014048361,1742.35932032,7.945e-05,2]
[359433599,1746014048395,7850.25886568,7.945e-05,2]
[359433600,1746014057259,50000.0,0.00032877,60]
[359433603,1746014207467,345.0,0.00032877,60]
[359433612,1746014433428,531.78,0.00018865,2]
[359433629,1746014549795,1617.96113432,0.00018876,2]
[359433630,1746014549818,10000.0,0.00018876,2]
[359433631,1746014549842,10000.0,0.00018876,2]
[359433632,1746014549866,2282.03886568,0.00018876,2]
[359433639,1746014582809,250.0,0.00018874,2]
[359433645,1746014707318,200.0,0.00032876,100]
[359433646,1746014729898,1000.0,0.00018874,2]
[359433652,1746014751822,152.45,0.00018876,2]
[359433660,1746014780716,250.0,0.00017,2]
[359433661,1746014781782,300.0,0.00019,2]
[359433668,1746015031939,-264.76922768,0.00019615,2]
[359433669,1746015031950,-2565.60630067,0.00019689,2]
[359433670,1746015031959,-150.0,0.00019712,2]
[359433671,1746015031969,-150.0,0.00019715,2]
[359433672,1746015031978,-150.0,0.00019721,2]
[359433673,1746015031987,-150.0,0.00019726,2]
[359433674,1746015031997,-150.0,0.00019728,2]
[359433675,1746015032006,-150.0,0.00019729,2]
[359433676,1746015032016,-150.0,0.0001973,2]
[359433677,1746015032025,-150.0,0.00019731,2]
[359433678,1746015032034,-150.0,0.00019736,2]
[359433679,1746015032044,-150.0,0.00019738,2]
[359433680,1746015032054,-150.0,0.00019743,2]
[359433681,1746015032064,-150.0,0.00019744,2]
[359433682,1746015032074,-150.0,0.00019744,2]
[359433683,1746015032083,-150.0,0.00019756,2]
[359433684,1746015032092,-150.0,0.00019756,2]
[359433685,1746015032102,-150.0,0.0001976,2]
[359433686,1746015032112,-150.0,0.0001976,2]
[359433687,1746015032122,-150.0,0.00019769,2]
[359433688,1746015032131,-150.0,0.00019774,2]
[359433689,1746015032141,-150.0,0.00019774,2]
[359433690,1746015032150,-150.0,0.00019778,2]
[359433691,1746015032160,-1200.0,0.00019781,2]
[359433692,1746015032169,-150.0,0.00019782,2]
[359433693,1746015032179,-150.0,0.00019783,2]
[359433694,1746015032189,-150.0,0.00019787,2]
[359433695,1746015032198,-150.0,0.00019791,2]
[359433697,1746015032207,-150.0,0.00019793,2]
[359433699,1746015032216,-300.0,0.00019793,2]
[359433700,1746015032229,-150.0,0.00019795,2]
[359433701,1746015032239,-1850.1937129,0.00019799,2]
[359433702,1746015032248,-150.0,0.00019811,2]
[359433719,1746015032402,-150.0,0.00019814,2]
[359433722,1746015032424,-150.0,0.00019815,2]
[359433724,1746015032434,-150.0,0.00019816,2]
[359433726,1746015032443,-150.0,0.0001982,2]
[359433728,1746015032453,-150.0,0.00019825,2]
[359433730,1746015032463,-150.0,0.00019826,2]
[359433732,1746015032472,-1187.38,0.00019826,2]
[359433734,1746015032481,-150.0,0.00019827,2]
[359433736,1746015032490,-150.0,0.00019831,2]
[359433737,1746015032499,-150.0,0.00019831,2]
[359433739,1746015032510,-150.0,0.00019832,2]
[359433741,1746015032520,-150.0,0.00019833,2]
[359433743,1746015032529,-150.0,0.00019838,2]
[359433745,1746015032539,-150.0,0.00019839,2]
[359433747,1746015032548,-150.0,0.00019839,2]
[359433749,1746015032558,-150.0,0.0001984,2]
[359433751,1746015032567,-150.0,0.0001985,2]
[359433753,1746015032577,-150.0,0.00019852,2]
[359433755,1746015032587,-150.0,0.00019852,2]
[359433757,1746015032596,-150.0,0.00019857,2]
[359433759,1746015032604,-150.0,0.00019859,2]
[359433760,1746015032614,-150.0,0.00019863,2]
[359433762,1746015032624,-150.0,0.00019865,2]
[359433764,1746015032634,-150.0,0.00019869,2]
[359433767,1746015032644,-150.0,0.00019871,2]
[359433768,1746015032653,-150.0,0.00019875,2]
[359433770,1746015032662,-150.0,0.00019875,2]
[359433772,1746015032672,-150.0,0.00019878,2]
[359433774,1746015032682,-150.0,0.00019887,2]
[359433776,1746015032692,-500.0,0.0001989,2]
[359433778,1746015032701,-1000.0,0.000199,2]
[359433780,1746015032710,-200.82825768,0.000199,2]
[359433782,1746015032720,-7968.12898976,0.000199,2]
[359433784,1746015032729,-2160.52047344,0.000199,2]
[359433786,1746015032738,-150.0,0.00019901,2]
[359433788,1746015032747,-150.0,0.00019905,2]
[359433790,1746015032756,-150.0,0.00019905,2]
[359433792,1746015032766,-150.0,0.00019908,2]
[359433794,1746015032775,-150.0,0.0001991,2]
[359433796,1746015032784,-150.0,0.00019911,2]
[359433798,1746015032793,-150.0,0.00019914,2]
[359433800,1746015032803,-150.0,0.00019916,2]
[359433802,1746015032812,-150.0,0.00019921,2]
[359433804,1746015032821,-150.0,0.00019925,2]
[359433806,1746015032831,-150.0,0.00019926,2]
[359433807,1746015032839,-150.0,0.00019928,2]
[359433809,1746015032849,-150.0,0.00019928,2]
[359433810,1746015032858,-150.0,0.0001993,2]
[359433812,1746015032867,-150.0,0.00019934,2]
[359433814,1746015032877,-150.0,0.00019934,2]
[359433815,1746015032886,-150.0,0.00019939,2]
[359433817,1746015032896,-150.0,0.00019939,2]
[359433819,1746015032906,-150.0,0.0001994,2]
[359433820,1746015032915,-150.0,0.00019943,2]
[359433822,1746015032924,-150.0,0.0001995,2]
[359433824,1746015032933,-207.4,0.00019953,2]
[359433825,1746015032942,-151.0,0.00019954,2]
[359433827,1746015032951,-150.0,0.00019957,2]
[359433829,1746015032961,-150.0,0.00019963,2]
[359433830,1746015032970,-150.0,0.00019964,2]
[359433832,1746015032979,-150.0,0.00019968,2]
[359433834,1746015032989,-557.08252322,0.00019973,2]
[359433835,1746015032998,-500.0,0.00019973,2]
[359433837,1746015033007,-295.79723047,0.00019973,2]
[359433839,1746015033017,-150.0,0.00019973,2]
[359433840,1746015033026,-150.0,0.00019974,2]
[359433842,1746015033035,-150.0,0.00019975,2]
[359433844,1746015033045,-150.0,0.00019976,2]
[359433846,1746015033056,-150.0,0.00019978,2]
[359433847,1746015033065,-150.0,0.00019978,2]
[359433849,1746015033084,-150.0,0.00019979,2]
[359433851,1746015033094,-150.0,0.00019982,2]
[359433853,1746015033103,-1637.6627797,0.00019986,2]
[359433854,1746015033113,-4078.4918117,0.00019986,2]
[359433856,1746015033123,-8102.5961363,0.00019986,2]
[359433879,1746015033404,-150.0,0.00019974,2]
[359433881,1746015033417,-4891.71211628,0.00019986,2]
[359433882,1746015037977,-150.0,0.00019803,2]
[359433883,1746015037990,-1689.62344935,0.000199,2]
[359433884,1746015038002,-1837.20408681,0.00019986,2]
[359433885,1746015038031,-890.54535279,0.00019986,2]
[359433886,1746015038139,-6596.03655,0.00019986,2]
[359434058,1746015040070,-37510.41781012,0.00019986,2]
[359434060,1746015040083,-587.01893676,0.0001999,2]
[359434062,1746015040102,-587.01893676,0.0001999,2]
[359434065,1746015040115,-587.01893676,0.0001999,2]
[359434067,1746015040127,-150.0,0.00019991,2]
[359434069,1746015040139,-150.0,0.00019994,2]
[359434071,1746015040150,-150.0,0.00019994,2]
[359434073,1746015040162,-300.0,0.00019999,2]
[359434076,1746015040173,-300.0,0.00019999,2]
[359434078,1746015040185,-150.0,0.00019999,2]
[359434080,1746015040196,-150.0,0.00019999,2]
[359434082,1746015040208,-150.0,0.00019999,2]
[359434085,1746015040223,-150.0,0.00019999,2]
[359434087,1746015040234,-150.0,0.00019999,2]
[359434089,1746015040246,-150.0,0.00019999,2]
[359434091,1746015040258,-150.0,0.00019999,2]
[359434093,1746015040271,-150.0,0.00019999,2]
[359434095,1746015040283,-150.0,0.00019999,2]
[359434097,1746015040295,-150.0,0.00019999,2]
[359434100,1746015040306,-150.0,0.00019999,2]
[359434102,1746015040317,-500.0,0.00019999,2]
[359434104,1746015040328,-356.14135196,0.00019999,2]
[359434106,1746015040340,-500.0,0.00019999,2]
[359434108,1746015040351,-500.0,0.00019999,2]
[359434111,1746015040362,-500.0,0.00019999,2]
[359434113,1746015040373,-500.0,0.00019999,2]
[359434115,1746015040385,-1290.0,0.0002,2]
[359434117,1746015040396,-1639.88402763,0.0002,2]
[359434120,1746015040415,-17075.8431097,0.0002,2]
[359434123,1746015040428,-5400581.73554368,0.0002,2]
[359434125,1746015040446,-492.6479998,0.0002,2]
[359434137,1746015040547,-777.4921319,0.0002,2]
[359434363,1746015043058,-1162.24999,0.0002,2]
[359434364,1746015043077,-47738.07347972,0.0002,2]
[359434365,1746015043219,-520.57910428,0.0002,2]
[359434373,1746015046026,-6347.48965574,0.0002,2]
[359434374,1746015046132,-738.30845914,0.0002,2]
[359434375,1746015046187,-3233.60443414,0.0002,2]
[359434376,1746015046344,-10472.13287512,0.0002,2]
[359434377,1746015046397,-2717.1631246,0.0002,2]
[359434381,1746015191079,1270.87,0.00017836,2]
[359434382,1746015202560,1053.0,0.00030137,120]
[359434383,1746015453673,2388.99,0.00019231,2]
[359434384,1746015898248,1000.0,0.00019052,2]
[359434385,1746015937247,-269.18136954,0.000196,2]
[359434386,1746015937273,-1200.0,0.00019682,2]
[359434387,1746015937299,-300.0,0.00019682,2]
[359434388,1746015937326,-4960.81863046,0.00019683,2]
[359434389,1746015997526,1105.65113432,8e-05,2]
[359434390,1746015997549,4902.23547357,8e-05,2]
[359434391,1746016009149,250.0,0.00018916,2]
[359434411,1746016173029,-210.6263,0.00019583,2]
[359434412,1746016173055,-200.0,0.00019633,2]
[359434413,1746016173080,-500.0,0.00019682,2]
[359434414,1746016173105,-298.07302448,0.00019682,2]
[359434415,1746016173130,-40831.80939134,0.00019683,2]
[359434416,1746016173157,-17959.49128418,0.00019683,2]
[359434437,1746016232178,-979.69008536,0.00019683,2]
[359434439,1746016232187,-150.0,0.00019734,2]
[359434440,1746016232196,-150.0,0.00019738,2]
[359434441,1746016232206,-174.17,0.00019739,2]
[359434442,1746016232216,-150.0,0.00019745,2]
[359434443,1746016232226,-150.0,0.00019753,2]
[359434444,1746016232235,-150.0,0.00019773,2]
[359434445,1746016232245,-1542.5331111,0.00019799,2]
[359434446,1746016232255,-150.0,0.00019801,2]
[359434447,1746016232264,-150.0,0.00019802,2]
[359434448,1746016232273,-150.0,0.00019827,2]
[359434449,1746016232283,-177.43334521,0.00019839,2]
[359434450,1746016232292,-150.0,0.0001984,2]
[359434451,1746016232302,-150.0,0.00019846,2]
[359434452,1746016232311,-150.0,0.0001985,2]
[359434453,1746016232321,-150.0,0.00019856,2]
[359434454,1746016232331,-150.0,0.00019883,2]
[359434455,1746016232340,-150.0,0.00019887,2]
[359434456,1746016232350,-150.0,0.00019887,2]
[359434457,1746016232359,-500.0,0.0001989,2]
[359434458,1746016232369,-150.0,0.00019891,2]
[359434459,1746016232378,-1200.0,0.00019899,2]
[359434460,1746016232387,-300.0,0.00019899,2]
[359434461,1746016232396,-169.1458,0.000199,2]
[359434462,1746016232407,-1000.0,0.000199,2]
[359434463,1746016232417,-207.52208592,0.000199,2]
[359434464,1746016232426,-160.62286689,0.000199,2]
[359434465,1746016232436,-7639.51839894,0.000199,2]
[359434466,1746016232446,-1608.58092419,0.000199,2]
[359434467,1746016232455,-617.2069,0.000199,2]
[359434469,1746016232466,-1105.23753664,0.000199,2]
[359434472,1746016232475,-236.01827982,0.000199,2]
[359434473,1746016232485,-229.35151504,0.000199,2]
[359434476,1746016232495,-150.0,0.00019915,2]
[359434477,1746016232504,-150.0,0.00019925,2]
[359434478,1746016232514,-150.0,0.00019936,2]
[359434480,1746016232523,-207.4,0.00019953,2]
[359434481,1746016232533,-151.0,0.00019954,2]
[359434482,1746016232543,-1625.861,0.00019973,2]
[359434483,1746016232552,-171.325,0.00019973,2]
[359434484,1746016232561,-150.0,0.00019983,2]
[359434485,1746016232570,-150.0,0.00019986,2]
[359434486,1746016232580,-2254.3843437,0.00019986,2]
[359434487,1746016232589,-4266.9907085,0.00019986,2]
[359434488,1746016232598,-46939.9416193,0.00019986,2]
[359434490,1746016232609,-150.0,0.00019988,2]
[359434491,1746016232618,-329.29,0.0001999,2]
[359434492,1746016232628,-329.29,0.0001999,2]
[359434493,1746016232637,-329.29,0.0001999,2]
[359434494,1746016232646,-329.29,0.0001999,2]
[359434495,1746016232658,-329.29,0.0001999,2]
[359434496,1746016232667,-329.29,0.0001999,2]
[359434497,1746016232676,-329.29,0.0001999,2]
[359434498,1746016232686,-329.29,0.0001999,2]
[359434499,1746016232695,-329.29,0.0001999,2]
[359434500,1746016232704,-329.29,0.0001999,2]
[359434501,1746016232714,-300.0,0.00019999,2]
[359434502,1746016232723,-300.0,0.00019999,2]
[359434503,1746016232732,-300.0,0.00019999,2]
[359434504,1746016232742,-712.3143,0.00019999,2]
[359434505,1746016232751,-150.0,0.00019999,2]
[359434506,1746016232761,-150.0,0.00019999,2]
[359434507,1746016232771,-150.0,0.00019999,2]
[359434508,1746016232780,-150.0,0.00019999,2]
[359434509,1746016232789,-150.0,0.00019999,2]
[359434510,1746016232799,-150.0,0.00019999,2]
[359434511,1746016232809,-150.0,0.00019999,2]
[359434512,1746016232819,-150.0,0.00019999,2]
[359434513,1746016232828,-150.0,0.00019999,2]
[359434514,1746016232837,-150.0,0.00019999,2]
[359434515,1746016232850,-150.0,0.00019999,2]
[359434516,1746016232859,-500.0,0.00019999,2]
[359434517,1746016232869,-500.0,0.00019999,2]
[359434518,1746016232878,-499.29894637,0.00019999,2]
[359434519,1746016232889,-500.0,0.00019999,2]
[359434520,1746016232898,-1203.0,0.0002,2]
[359434521,1746016232909,-107350.37483302,0.0002,2]
[359434522,1746016232928,-1798.0,0.0002,2]
[359434523,1746016232939,-4552.14736048,0.0002,2]
[359434524,1746016232955,-500.0,0.0002,2]
[359434525,1746016232966,-266.6035016,0.0002,2]
[359434530,1746016238246,-4974.58691279,0.0002,2]
[359434531,1746016238258,-1901.32,0.0002,2]
[359434532,1746016238303,-1120.1197219,0.0002,2]
[359434533,1746016238314,-1471402.32484082,0.0002,2]
[359434534,1746016238324,-39742.26236548,0.0002,2]
[359434535,1746016238333,-301.26767643,0.0002,2]
[359434536,1746016238343,-10000.0,0.0002,2]
[359434537,1746016238353,-1482.76242669,0.0002,2]
[359434538,1746016238362,-481.2480226,0.0002,2]
[359434539,1746016238371,-18839.17559419,0.0002,2]
[359434540,1746016238381,-2340065.74243467,0.0002,2]
[359434541,1746016238391,-1442957.09070352,0.0002,2]
[359434542,1746016238403,-1910.23488341,0.0002,2]
[359434543,1746016238526,-2526.5108,0.0002,2]
[359434544,1746016238584,-16230.66053985,0.0002,2]
[359434556,1746016240493,-1184.0,0.0002,2]
[359434557,1746016240503,-1255.74720309,0.0002,2]
[359434558,1746016240515,-4930.9037663,0.0002,2]
[359434559,1746016240552,-623.42288688,0.0002,2]
[359434560,1746016240563,-724.35467994,0.0002,2]
[359434561,1746016240574,-607.46602351,0.0002,2]
[359434562,1746016240718,-1188.66666666,0.0002,2]
[359434570,1746016243413,-1769.62,0.0002,2]
[359434571,1746016243425,-330.22097111,0.0002,2]
[359434572,1746016243437,-387.66609591,0.0002,2]
[359434573,1746016243490,-295.99920458,0.0002,2]
[359434574,1746016243609,-6163.41419395,0.0002,2]
[359434575,1746016243720,-3447.51354814,0.0002,2]
[359434587,1746016246302,-4355.43170281,0.0002,2]
[359434588,1746016246361,-3212.66273304,0.0002,2]
[359434589,1746016246443,-591.0999995,0.0002,2]
[359434590,1746016547644,1258.29,0.00018096,2]
[359434591,1746016593604,250.0,0.00017,2]
[359434592,1746016594406,152.0,0.00019,2]
[359434593,1746016594432,148.0,0.00019,2]
[359434594,1746016599416,-175.15553252,0.00019799,2]
[359434595,1746016599439,-135.11223908,0.00019799,2]
[359434603,1746017051557,-250.0,0.00019495,2]
[359434604,1746017167907,-1000.0,0.00019633,2]
[359434605,1746017167928,-187.8037118,0.00019799,2]
[359434606,1746017167949,-202.55989092,0.00019799,2]
[359434607,1746017167970,-1207.004041,0.00019799,2]
[359434608,1746017167990,-202.55989091,0.00019843,2]
[359434609,1746017168011,-150.0,0.00019863,2]
[359434610,1746017168031,-202.55989091,0.00019886,2]
[359434611,1746017168052,-300.0,0.00019898,2]
[359434612,1746017168073,-1200.0,0.00019899,2]
[359434613,1746017168093,-550.0,0.00019899,2]
[359434614,1746017168113,-300.0,0.00019899,2]
[359434615,1746017168135,-1000.0,0.000199,2]
[359434616,1746017168155,-5511.2417,0.000199,2]
[359434617,1746017168174,-2500.0,0.000199,2]
[359434618,1746017168196,-500.0,0.000199,2]
[359434619,1746017168218,-177.87607368,0.000199,2]
[359434620,1746017168238,-158.69407634,0.000199,2]
[359434621,1746017168259,-219.31842447,0.000199,2]
[359434622,1746017168280,-2880.69396458,0.000199,2]
[359434623,1746017168302,-152.90101002,0.000199,2]
[359434624,1746017168323,-23900.0,0.00019948,2]
[359434625,1746017168345,-207.4,0.00019953,2]
[359434626,1746017168367,-151.0,0.00019954,2]
[359434627,1746017168388,-512.48227853,0.00019973,2]
[359434628,1746017168408,-500.0,0.00019973,2]
[359434629,1746017168428,-502.01998914,0.00019973,2]
[359434630,1746017168447,-500.0,0.00019973,2]
[359434631,1746017168467,-500.0,0.00019973,2]
[359434632,1746017168486,-153.01894551,0.00019973,2]
[359434633,1746017168673,-500.0,0.00019973,2]
[359434634,1746017168694,-500.77379964,0.00019973,2]
[359434635,1746017168714,-500.0,0.00019973,2]
[359434636,1746017168743,-491.01437173,0.00019973,2]
[359434637,1746017168767,-1300.688,0.00019974,2]
[359434638,1746017168788,-152.45,0.00019981,2]
[359434639,1746017168809,-886.1360261,0.00019986,2]
[359434640,1746017168829,-4235.5717239,0.00019986,2]
[359434641,1746017168850,-171.326,0.00019986,2]
[359434642,1746017168872,-46778.9070151,0.00019986,2]
[359434643,1746017168896,-2833.2371982,0.00019986,2]
[359434644,1746017168918,-500.0,0.00019999,2]
[359434645,1746017168941,-500.0,0.00019999,2]
[359434646,1746017168963,-500.0,0.00019999,2]
[359434647,1746017168985,-500.0,0.00019999,2]
[359434648,1746017169007,-500.0,0.00019999,2]
[359434649,1746017169028,-288.98867867,0.00019999,2]
[359434650,1746017169052,-500.0,0.00019999,2]
[359434651,1746017169074,-500.0,0.00019999,2]
[359434652,1746017169096,-500.0,0.00019999,2]
[359434653,1746017169119,-500.0,0.00019999,2]
[359434654,1746017169142,-450.0,0.00019999,2]
[359434655,1746017169163,-1176.0,0.0002,2]
[359434656,1746017169185,-219921.97068785,0.0002,2]
[359434657,1746017169211,-501470.99599554,0.0002,2]
[359434658,1746017169232,-357.80752,0.0002,2]
[359434659,1746017169253,-4999.99999901,0.0002,2]
[359434660,1746017169274,-151.0,0.0002,2]
[359434661,1746017169295,-201.55005161,0.0002,2]
[359434662,1746017169316,-153.581679,0.0002,2]
[359434663,1746017169337,-315308.06569917,0.0002,2]
[359434664,1746017169768,-21343.1558,0.000199,2]
[359434665,1746017169790,-500.0,0.00019973,2]
[359434666,1746017169813,-1131016.04253333,0.0002,2]
[359434667,1746017170173,-1152859.19833333,0.0002,2]
[359434668,1746017170998,-1152859.19833333,0.0002,2]
[359434669,1746017172003,-951345.82324792,0.0002,2]
[359434670,1746017172026,-160.0224,0.0002,2]
[359434671,1746017172048,-382.722133,0.0002,2]
[359434672,1746017172071,-382.722133,0.0002,2]
[359434673,1746017172091,-151.0,0.0002,2]
[359434674,1746017172112,-200436.90841941,0.0002,2]
[359434675,1746017173011,-1152859.19833333,0.0002,2]
[359434676,1746017228775,-965.6032328,0.00019799,2]
[359434677,1746017228805,-1000.0,0.000199,2]
[359434678,1746017228836,-2500.0,0.000199,2]
[359434679,1746017228868,-168.20652951,0.000199,2]
[359434680,1746017228899,-207.4,0.00019953,2]
[359434681,1746017228928,-151.0,0.00019954,2]
[359434682,1746017228955,-181.0,0.00019973,2]
[359434683,1746017228983,-500.0,0.00019973,2]
[359434684,1746017229010,-429.75065803,0.00019973,2]
[359434685,1746017229038,-3958.3990272,0.00019986,2]
[359434686,1746017229067,-172.7887327,0.00019999,2]
[359434687,1746017229094,-218.73086676,0.00019999,2]
[359434688,1746017229126,-263.07946785,0.00019999,2]
[359434689,1746017229152,-172.39963703,0.00019999,2]
[359434690,1746017229183,-500.0,0.00019999,2]
[359434691,1746017229215,-500.0,0.00019999,2]
[359434692,1746017229244,-500.0,0.00019999,2]
[359434693,1746017229274,-500.0,0.00019999,2]
[359434694,1746017229303,-500.0,0.00019999,2]
[359434695,1746017229332,-500.0,0.00019999,2]
[359434696,1746017229362,-500.0,0.00019999,2]
[359434697,1746017229391,-500.0,0.00019999,2]
[359434698,1746017229421,-266.80133753,0.00019999,2]
[359434699,1746017229453,-500.0,0.00019999,2]
[359434700,1746017229483,-150.0,0.00019999,2]
[359434701,1746017229511,-1053.0,0.0002,2]
[359434702,1746017229532,-965.6032328,0.0002,2]
[359434703,1746017229553,-1000.0,0.0002,2]
[359434704,1746017229569,-2500.0,0.0002,2]
[359434705,1746017229580,-168.20652951,0.0002,2]
[359434706,1746017229600,-207.4,0.0002,2]
[359434707,1746017229611,-151.0,0.0002,2]
[359434708,1746017229627,-181.0,0.0002,2]
[359434709,1746017229643,-500.0,0.0002,2]
[359434710,1746017229658,-429.75065803,0.0002,2]
[359434711,1746017229676,-3958.3990272,0.0002,2]
[359434712,1746017229696,-172.7887327,0.0002,2]
[359434713,1746017229707,-218.73086676,0.0002,2]
[359434714,1746017229718,-263.07946785,0.0002,2]
[359434715,1746017229734,-172.39963703,0.0002,2]
[359434716,1746017229750,-500.0,0.0002,2]
[359434717,1746017229767,-500.0,0.0002,2]
[359434718,1746017229782,-500.0,0.0002,2]
[359434719,1746017229797,-500.0,0.0002,2]